[Event "FIDE WSTC Open 50 2025"]
[Site "Prague"]
[Date "2025.02.19"]
[Round "3.34"]
[White "Rasalingam, Haran"]
[Black "Jirovsky, Milos"]
[Result "1/2-1/2"]
[Annotator "RC"]
[ECO "B01"]
[WhiteElo "2014"]
[BlackElo "2410"]
[PlyCount "107"]
[EventDate "2025.02.17"]
[EventType "team-tourn"]
[EventCountry "CZE"]
[SourceTitle "playchess.com"]
[Source "ChessBase"]
[SourceQuality "1"]
[TimeControl "40/5400+30:1800+30"]

1. e4 {[%emt 0:00:25]} d5 {[%emt 0:00:10]} 2. exd5 {[%emt 0:00:23]} Qxd5 {[%emt 0:00:07]} 3. Nc3 {[%emt 0:00:25]} Qd6 {[%emt 0:00:03]} 4. d4 {[%emt 0:01:18]} c6 {[%emt 0:00:11]} 5. Nf3 {[%emt 0:00:43]} Bf5 {[%emt 0:00:28]} 6. Ne5 {[%emt 0:01:38]} Nd7 {[%emt 0:00:34]} 7. g4 {[%emt 0:11:12]} Nxe5 {[%emt 0:02:46]} 8. gxf5 {[%emt 0:00:07]} Qxd4 {[%emt 0:00:36]} 9. Be3 {[%emt 0:01:38]} Qxd1+ {[%emt 0:00:35]} 10. Rxd1 {[%emt 0:00:19]} Nf6 {[%emt 0:00:45]} 11. Be2 {[%emt 0:01:39]} g6 {[%emt 0:01:57]} 12. Bd4 {[%emt 0:23:32]} Ned7 {[%emt 0:01:01]} 13. fxg6 {[%emt 0:03:42]} hxg6 {[%emt 0:00:14]} 14. Ne4 {[%emt 0:05:19]} Bg7 {[%emt 0:00:30]} 15. Bf3 {[%emt 0:06:41]} Rh4 {[%emt 0:03:00]} 16. O-O {[%emt 0:07:28]} Nxe4 {[%emt 0:01:19]} 17. Bxe4 {[%emt 0:07:14]} Rxe4 {[%emt 0:05:42]} 18. Bxg7 {[%emt 0:00:33]} f6 {[%emt 0:00:08]} 19. Bh6 {[%emt 0:03:06]} g5 {[%emt 0:10:05]} 20. f4 {[%emt 0:00:30]} g4 {[%emt 0:03:09]} 21. Rfe1 {[%emt 0:03:44]} Nc5 {[%emt 0:00:50]} 22. f5 {[%emt 0:03:43]} Rd8 {[%emt 0:04:46]} 23. Rxd8+ {[%emt 0:02:39]} Kxd8 {[%emt 0:00:03]} 24. Rxe4 {[%emt 0:00:17]} Nxe4 {[%emt 0:00:09]} 25. Bf4 {[%emt 0:00:09]} Kd7 {[%emt 0:01:24]} 26. Kf1 {[%emt 0:00:29]} Nd6 {[%emt 0:00:33]} 27. Ke2 {[%emt 0:03:32]} Nxf5 {[%emt 0:00:11]} 28. Kd3 {[%emt 0:00:08]} e5 {[%emt 0:00:19]} 29. Bd2 {[%emt 0:00:21]} Ke6 {[%emt 0:00:07]} 30. c4 {[%emt 0:00:45]} Nd4 {[%emt 0:00:18]} 31. b4 {[%emt 0:01:42]} Nf3 {[%emt 0:00:29]} 32. Be3 {[%emt 0:00:34]} b6 {[%emt 0:00:12]} 33. a4 {[%emt 0:00:46]} f5 {[%emt 0:00:30]} 34. a5 {[%emt 0:00:32]} f4 {[%emt 0:00:37]} 35. Bxb6 {[%emt 0:01:04]} a6 {[%emt 0:07:30]} 36. b5 {[%emt 0:03:19]} Kd7 {[%emt 0:00:45]} 37. bxa6 {[%emt 0:00:34]} Kc8 {[%emt 0:00:10]} 38. Ke4 {[%emt 0:00:24]} Nxh2 {[%emt 0:01:05]} 39. Kxe5 {[%emt 0:00:47]} f3 {[%emt 0:02:16]} 40. Kf4 {[%emt 0:00:13]} Kb8 {[%emt 0:01:04]} 41. Kg3 {[%emt 0:31:04]} Nf1+ {[%emt 0:30:20]} 42. Kxg4 {[%emt 0:03:44]} Nd2 {[%emt 0:00:07]} 43. Kg3 {[%emt 0:00:00]} Ka8 {[%emt 0:00:00]} 44. Kf2 {[%emt 0:00:00]} Kb8 {[%emt 0:00:00]} 45. Ke3 {[%emt 0:00:00]} Nxc4+ {[%emt 0:00:00]} 46. Kxf3 {[%emt 0:00:00]} Nxa5 {[%emt 0:00:00]} 47. Bxa5 {[%emt 0:00:00]} Ka7 {[%emt 0:00:00]} 48. Ke4 {[%emt 0:00:00]} Kxa6 {[%emt 0:00:00]} 49. Bc3 {[%emt 0:00:00]} c5 {[%emt 0:00:00]} 50. Kd5 {[%emt 0:00:00]} Kb5 {[%emt 0:00:00]} 51. Bd2 {[%emt 0:00:00]} c4 {[%emt 0:00:00]} 52. Kd4 {[%emt 0:00:00]} c3 {[%emt 0:00:00]} 53. Bxc3 {[%emt 0:00:00]} Kc6 {[%emt 0:00:00]} 54. Ke4 1/2-1/2

[Event "FIDE WSTC Open 50 2025"]
[Site "Prague"]
[Date "2025.02.19"]
[Round "3.35"]
[White "Zvara, Petr"]
[Black "Martin, Benjamin M S"]
[Result "0-1"]
[Annotator "RC"]
[ECO "C78"]
[WhiteElo "2330"]
[BlackElo "2375"]
[PlyCount "91"]
[EventDate "2025.02.17"]
[EventType "team-tourn"]
[EventCountry "CZE"]
[SourceTitle "playchess.com"]
[Source "ChessBase"]
[SourceQuality "1"]
[TimeControl "40/5400+30:1800+30"]

1. e4 {[%emt 0:00:03]} e5 {[%emt 0:00:16]} 2. Nf3 {[%emt 0:00:07]} Nc6 {[%emt 0:00:05]} 3. Bb5 {[%emt 0:00:05]} a6 {[%emt 0:00:26]} 4. Ba4 {[%emt 0:00:07]} Nf6 {[%emt 0:00:10]} 5. O-O {[%emt 0:00:08]} Bc5 {[%emt 0:00:31]} 6. c3 {[%emt 0:01:29]} O-O {[%emt 0:00:27]} 7. d4 {[%emt 0:01:41]} Ba7 {[%emt 0:00:11]} 8. Re1 {[%emt 0:11:02]} d6 {[%emt 0:01:41]} 9. h3 {[%emt 0:01:38]} b5 {[%emt 0:14:38]} 10. Bb3 {[%emt 0:01:43]} Bb7 {[%emt 0:09:12]} 11. Bg5 {[%emt 0:07:15]} Re8 {[%emt 0:03:51]} 12. d5 {[%emt 0:01:15]} Na5 {[%emt 0:04:27]} 13. Bc2 {[%emt 0:00:07]} h6 {[%emt 0:03:17]} 14. Bh4 {[%emt 0:01:10]} Nc4 {[%emt 0:04:11]} 15. b3 {[%emt 0:02:26]} Nb6 {[%emt 0:00:06]} 16. Nbd2 {[%emt 0:00:11]} g5 {[%emt 0:08:49]} 17. Nxg5 {[%emt 0:02:47]} hxg5 {[%emt 0:00:07]} 18. Bxg5 {[%emt 0:00:04]} Nbd7 {[%emt 0:01:33]} 19. Qf3 {[%emt 0:00:37]} Kg7 {[%emt 0:00:56]} 20. Nf1 {[%emt 0:00:33]} Rh8 {[%emt 0:07:54]} 21. Rad1 {[%emt 0:08:42]} Qg8 {[%emt 0:03:49]} 22. Rd3 {[%emt 0:03:43]} Qh7 {[%emt 0:11:42]} 23. Ng3 {[%emt 0:20:19]} Qg6 {[%emt 0:00:55]} 24. Nf5+ {[%emt 0:02:04]} Kf8 {[%emt 0:03:14]} 25. h4 {[%emt 0:07:40]} Qh5 {[%emt 0:05:26]} 26. Qxh5 {[%emt 0:00:06]} Nxh5 {[%emt 0:01:47]} 27. Bd1 {[%emt 0:02:35]} Nf4 {[%emt 0:04:11]} 28. Rf3 {[%emt 0:00:14]} f6 {[%emt 0:00:44]} 29. Bh6+ {[%emt 0:06:13]} Kf7 {[%emt 0:00:09]} 30. g3 {[%emt 0:00:14]} Ng6 {[%emt 0:00:29]} 31. Rd3 {[%emt 0:01:07]} Ndf8 {[%emt 0:02:29]} 32. Bd2 {[%emt 0:07:05]} Bc8 {[%emt 0:01:20]} 33. c4 {[%emt 0:04:48]} Bxf5 {[%emt 0:01:33]} 34. exf5 {[%emt 0:00:03]} Ne7 {[%emt 0:00:08]} 35. Bg4 {[%emt 0:00:09]} bxc4 {[%emt 0:01:25]} 36. bxc4 {[%emt 0:00:03]} Nd7 {[%emt 0:00:10]} 37. Kg2 {[%emt 0:01:21]} Rab8 {[%emt 0:01:13]} 38. h5 {[%emt 0:01:40]} Bc5 {[%emt 0:01:35]} 39. h6 {[%emt 0:00:13]} Kg8 {[%emt 0:01:31]} 40. Bh5 {[%emt 0:01:47]} Kh7 {[%emt 0:01:12]} 41. Bf7 {[%emt 0:30:20]} Bb4 {[%emt 0:32:24]} 42. Re4 {[%emt 0:00:00]} Bxd2 {[%emt 0:00:00]} 43. Rxd2 {[%emt 0:00:00]} Rhf8 {[%emt 0:00:00]} 44. Bh5 {[%emt 0:00:00]} Nc5 {[%emt 0:00:00]} 45. Rh4 {[%emt 0:00:00]} Nxf5 {[%emt 0:00:00]} 46. Rh1 {[%emt 0:00:00]} 0-1

[Event "FIDE WSTC Open 50 2025"]
[Site "Prague"]
[Date "2025.02.19"]
[Round "3.36"]
[White "Proudfoot, Andy"]
[Black "Konopka, Michal"]
[Result "0-1"]
[Annotator "RC"]
[ECO "B04"]
[WhiteElo "1597"]
[BlackElo "2326"]
[PlyCount "24"]
[EventDate "2025.02.17"]
[EventType "team-tourn"]
[EventCountry "CZE"]
[SourceTitle "playchess.com"]
[Source "ChessBase"]
[SourceQuality "1"]
[TimeControl "40/5400+30:1800+30"]

1. e4 {[%emt 0:00:25]} Nf6 {[%emt 0:00:27]} 2. e5 {[%emt 0:00:31]} Nd5 {[%emt 0:00:37]} 3. d4 {[%emt 0:00:37]} d6 {[%emt 0:00:06]} 4. Nf3 {[%emt 0:00:54]} g6 {[%emt 0:00:33]} 5. Bc4 {[%emt 0:04:23]} c6 {[%emt 0:00:45]} 6. Bb3 {[%emt 0:05:24]} Bg7 {[%emt 0:00:41]} 7. O-O {[%emt 0:05:40]} dxe5 {[%emt 0:01:19]} 8. c4 {[%emt 0:09:20]} Nf4 {[%emt 0:21:09]} 9. Nxe5 {[%emt 0:19:54]} Qxd4 {[%emt 0:02:31]} 10. Nf3 {[%emt 0:07:40]} Qxd1 {[%emt 0:01:33]} 11. Rxd1 {[%emt 0:02:15]} Ne2+ {[%emt 0:00:15]} 12. Kf1 {[%emt 0:01:52]} Nxc1 {[%emt 0:00:08]} 0-1

[Event "FIDE WSTC Open 50 2025"]
[Site "Prague"]
[Date "2025.02.19"]
[Round "3.37"]
[White "Seul, Georg"]
[Black "Lauterbach, Ingrid"]
[Result "1/2-1/2"]
[Annotator "RC"]
[ECO "B31"]
[WhiteElo "2329"]
[BlackElo "2003"]
[PlyCount "49"]
[EventDate "2025.02.17"]
[EventType "team-tourn"]
[EventCountry "CZE"]
[SourceTitle "playchess.com"]
[Source "ChessBase"]
[SourceQuality "1"]
[TimeControl "40/5400+30:1800+30"]

1. e4 {[%emt 0:00:03]} c5 {[%emt 0:00:15]} 2. Nf3 {[%emt 0:00:06]} Nc6 {[%emt 0:00:10]} 3. Bb5 {[%emt 0:00:11]} g6 {[%emt 0:00:15]} 4. O-O {[%emt 0:00:47]} Bg7 {[%emt 0:00:13]} 5. Re1 {[%emt 0:00:26]} Nh6 {[%emt 0:01:25]} 6. h3 {[%emt 0:03:58]} e5 {[%emt 0:07:17]} 7. Bxc6 {[%emt 0:14:23]} bxc6 {[%emt 0:00:25]} 8. c3 {[%emt 0:00:58]} f6 {[%emt 0:00:38]} 9. d4 {[%emt 0:01:42]} cxd4 {[%emt 0:00:58]} 10. cxd4 {[%emt 0:00:06]} Nf7 {[%emt 0:00:58]} 11. Nc3 {[%emt 0:13:19]} O-O {[%emt 0:06:34]} 12. b3 {[%emt 0:01:52]} Re8 {[%emt 0:18:04]} 13. Bb2 {[%emt 0:00:40]} d6 {[%emt 0:03:06]} 14. Qc2 {[%emt 0:02:48]} exd4 {[%emt 0:07:22]} 15. Nxd4 {[%emt 0:00:11]} c5 {[%emt 0:00:11]} 16. Nde2 {[%emt 0:01:52]} f5 {[%emt 0:00:49]} 17. Nf4 {[%emt 0:01:03]} Ne5 {[%emt 0:12:02]} 18. Rad1 {[%emt 0:04:36]} Qg5 {[%emt 0:03:04]} 19. Nfd5 {[%emt 0:13:57]} Nf3+ {[%emt 0:00:40]} 20. Kh1 {[%emt 0:00:05]} Nxe1 {[%emt 0:00:16]} 21. Rxe1 {[%emt 0:00:04]} Bb7 {[%emt 0:06:37]} 22. Nc7 {[%emt 0:20:32]} Be5 {[%emt 0:07:56]} 23. Nxe8 {[%emt 0:02:49]} Rxe8 {[%emt 0:00:18]} 24. Bc1 {[%emt 0:10:58]} Qh5 {[%emt 0:04:04]} 25. Kg1 {[%emt 0:01:29]} 1/2-1/2

[Event "FIDE WSTC Open 50 2025"]
[Site "Prague"]
[Date "2025.02.19"]
[Round "3.38"]
[White "Jackson, Sheila"]
[Black "Schulz, Klaus-Juergen"]
[Result "0-1"]
[Annotator "RC"]
[ECO "B80"]
[WhiteElo "2009"]
[BlackElo "2345"]
[PlyCount "86"]
[EventDate "2025.02.17"]
[EventType "team-tourn"]
[EventCountry "CZE"]
[SourceTitle "playchess.com"]
[Source "ChessBase"]
[SourceQuality "1"]
[TimeControl "40/5400+30:1800+30"]

1. e4 {[%emt 0:00:01]} c5 {[%emt 0:00:28]} 2. Nf3 {[%emt 0:00:06]} e6 {[%emt 0:00:27]} 3. d4 {[%emt 0:00:13]} cxd4 {[%emt 0:00:19]} 4. Nxd4 {[%emt 0:00:02]} Nf6 {[%emt 0:00:21]} 5. Nc3 {[%emt 0:00:24]} d6 {[%emt 0:00:17]} 6. Be3 {[%emt 0:00:21]} a6 {[%emt 0:02:45]} 7. f3 {[%emt 0:02:13]} b5 {[%emt 0:15:13]} 8. Qd2 {[%emt 0:02:39]} Bd7 {[%emt 0:12:21]} 9. Bd3 {[%emt 0:05:17]} Nc6 {[%emt 0:01:14]} 10. Nxc6 {[%emt 0:04:18]} Bxc6 {[%emt 0:00:06]} 11. O-O-O {[%emt 0:00:39]} Qc7 {[%emt 0:03:47]} 12. Kb1 {[%emt 0:00:53]} Be7 {[%emt 0:08:57]} 13. h4 {[%emt 0:21:14]} b4 {[%emt 0:11:48]} 14. Ne2 {[%emt 0:00:09]} d5 {[%emt 0:00:14]} 15. e5 {[%emt 0:05:11]} Nd7 {[%emt 0:00:19]} 16. f4 {[%emt 0:00:39]} Nc5 {[%emt 0:00:46]} 17. Nd4 {[%emt 0:00:45]} Na4 {[%emt 0:04:51]} 18. Ka1 {[%emt 0:07:32]} Bd7 {[%emt 0:00:24]} 19. h5 {[%emt 0:05:26]} Rb8 {[%emt 0:00:56]} 20. Ne2 {[%emt 0:03:01]} Bb5 {[%emt 0:03:16]} 21. Bd4 {[%emt 0:00:50]} Bc5 {[%emt 0:01:21]} 22. Bxb5+ {[%emt 0:08:27]} axb5 {[%emt 0:04:49]} 23. Bxc5 {[%emt 0:03:51]} Qxc5 {[%emt 0:00:16]} 24. Rh3 {[%emt 0:00:29]} Ra8 {[%emt 0:08:33]} 25. Rb3 {[%emt 0:00:34]} Qc4 {[%emt 0:05:48]} 26. Nc1 {[%emt 0:04:05]} O-O {[%emt 0:04:33]} 27. Rxb4 {[%emt 0:00:38]} Qc6 {[%emt 0:01:45]} 28. Kb1 {[%emt 0:04:26]} Nb6 {[%emt 0:04:46]} 29. b3 {[%emt 0:01:39]} Rfb8 {[%emt 0:00:56]} 30. h6 {[%emt 0:01:35]} Nd7 {[%emt 0:01:08]} 31. hxg7 {[%emt 0:00:23]} Nc5 {[%emt 0:00:11]} 32. Qc3 {[%emt 0:10:25]} Qb6 {[%emt 0:00:45]} 33. Rh1 {[%emt 0:01:25]} Ne4 {[%emt 0:01:40]} 34. Qh3 {[%emt 0:00:31]} Kxg7 {[%emt 0:00:10]} 35. Qh6+ {[%emt 0:01:07]} Kg8 {[%emt 0:00:04]} 36. Rh4 {[%emt 0:02:04]} Nc3+ 37. Ka1 {[%emt 0:01:25]} Rxa2+ {[%emt 0:00:28]} 38. Nxa2 {[%emt 0:00:21]} Qg1+ {[%emt 0:00:05]} 39. Kb2 {[%emt 0:00:18]} Nd1+ {[%emt 0:01:19]} 40. Ka3 {[%emt 0:00:50]} Ra8+ {[%emt 0:00:15]} 41. Ra4 {[%emt 0:30:23]} Qc5+ {[%emt 0:32:34]} 42. Nb4 {[%emt 0:01:15]} Rxa4+ {[%emt 0:00:11]} 43. bxa4 {[%emt 0:00:11]} Qc3+ {[%emt 0:00:07]} 0-1

[Event "FIDE WSTC Open 50 2025"]
[Site "Prague"]
[Date "2025.02.19"]
[Round "3.39"]
[White "Wolf, Volker"]
[Black "Fink-Nunn, Petra"]
[Result "1-0"]
[Annotator "ChessBase"]
[ECO "C26"]
[WhiteElo "2206"]
[BlackElo "2003"]
[PlyCount "69"]
[EventDate "2025.02.17"]
[EventType "team-tourn"]
[EventCountry "CZE"]
[SourceTitle "playchess.com"]
[Source "ChessBase"]
[SourceQuality "1"]
[TimeControl "40/5400+30:1800+30"]

1. e4 {[%emt 0:00:14]} e5 {[%emt 0:00:09]} 2. Nc3 {[%emt 0:02:21]} Nf6 {[%emt 0:00:13]} 3. g3 {[%emt 0:00:26]} Bc5 {[%emt 0:08:46]} 4. Bg2 {[%emt 0:00:51]} Nc6 {[%emt 0:05:05]} 5. d3 {[%emt 0:00:31]} d6 {[%emt 0:03:04]} 6. h3 {[%emt 0:02:52]} O-O {[%emt 0:09:26]} 7. Na4 {[%emt 0:06:08]} Bb6 {[%emt 0:06:55]} 8. Nxb6 {[%emt 0:01:53]} axb6 {[%emt 0:00:05]} 9. Nf3 {[%emt 0:01:30]} h6 {[%emt 0:03:57]} 10. O-O {[%emt 0:00:23]} Be6 {[%emt 0:04:06]} 11. Re1 {[%emt 0:05:27]} Nh7 {[%emt 0:10:04]} 12. d4 {[%emt 0:08:25]} exd4 {[%emt 0:01:31]} 13. Nxd4 {[%emt 0:00:20]} Nxd4 {[%emt 0:01:52]} 14. Qxd4 {[%emt 0:00:03]} Qf6 {[%emt 0:03:56]} 15. Qxf6 {[%emt 0:05:01]} Nxf6 {[%emt 0:01:32]} 16. b3 {[%emt 0:00:37]} b5 {[%emt 0:04:05]} 17. Bb2 {[%emt 0:03:02]} Nd7 {[%emt 0:00:48]} 18. f4 {[%emt 0:11:10]} f6 {[%emt 0:00:18]} 19. a3 {[%emt 0:00:58]} Nc5 {[%emt 0:11:19]} 20. Rad1 {[%emt 0:03:01]} Rad8 {[%emt 0:00:25]} 21. Bd4 {[%emt 0:10:30]} Ra8 {[%emt 0:04:16]} 22. e5 {[%emt 0:01:34]} fxe5 {[%emt 0:02:01]} 23. fxe5 {[%emt 0:00:20]} Rfe8 {[%emt 0:01:20]} 24. exd6 {[%emt 0:02:16]} cxd6 {[%emt 0:00:02]} 25. Bxc5 {[%emt 0:01:56]} dxc5 {[%emt 0:00:03]} 26. Bxb7 {[%emt 0:01:07]} Rxa3 {[%emt 0:03:10]} 27. Bc6 {[%emt 0:01:20]} Re7 {[%emt 0:00:01]} 28. Bxb5 {[%emt 0:00:10]} Kf7 {[%emt 0:05:55]} 29. Rd2 {[%emt 0:01:41]} Raa7 {[%emt 0:04:38]} 30. Rf2+ {[%emt 0:01:37]} Kg8 {[%emt 0:00:24]} 31. Rfe2 {[%emt 0:01:05]} Reb7 {[%emt 0:03:36]} 32. Bc6 {[%emt 0:01:19]} Bxh3 {[%emt 0:00:11]} 33. Bxb7 {[%emt 0:00:09]} Rxb7 {[%emt 0:00:01]} 34. Re7 {[%emt 0:00:46]} Rb4 {[%emt 0:00:25]} 35. Rc7 1-0

[Event "FIDE WSTC Open 50 2025"]
[Site "Prague"]
[Date "2025.02.19"]
[Round "3.40"]
[White "Frostick, Helen M"]
[Black "Polster, Wolfgang"]
[Result "1/2-1/2"]
[Annotator "NA"]
[ECO "B06"]
[WhiteElo "1880"]
[BlackElo "2131"]
[PlyCount "39"]
[EventDate "2025.02.17"]
[EventType "team-tourn"]
[EventCountry "CZE"]
[SourceTitle "playchess.com"]
[Source "ChessBase"]
[SourceQuality "1"]
[TimeControl "40/5400+30:1800+30"]

1. e4 {[%emt 0:00:04]} c6 {[%emt 0:01:04]} 2. d4 {[%emt 0:00:25]} g6 {[%emt 0:00:46]} 3. Nc3 {[%emt 0:01:11]} Bg7 {[%emt 0:03:16]} 4. Nf3 {[%emt 0:15:55]} d6 {[%emt 0:05:21]} 5. Be2 {[%emt 0:09:11]} Nf6 {[%emt 0:03:45]} 6. a4 {[%emt 0:03:55]} a5 {[%emt 0:09:45]} 7. O-O {[%emt 0:01:01]} O-O {[%emt 0:00:23]} 8. h3 {[%emt 0:00:57]} Qc7 {[%emt 0:06:57]} 9. Re1 {[%emt 0:07:23]} e5 {[%emt 0:03:25]} 10. dxe5 {[%emt 0:01:16]} dxe5 {[%emt 0:00:07]} 11. Be3 {[%emt 0:01:04]} h6 {[%emt 0:05:37]} 12. Qc1 {[%emt 0:01:44]} Kh7 {[%emt 0:00:31]} 13. Bc5 {[%emt 0:00:36]} Re8 {[%emt 0:08:23]} 14. Rd1 {[%emt 0:03:17]} Bf8 {[%emt 0:02:19]} 15. Bxf8 {[%emt 0:03:25]} Rxf8 {[%emt 0:00:07]} 16. Qe3 {[%emt 0:01:34]} Be6 {[%emt 0:03:10]} 17. Rd2 {[%emt 0:01:42]} Nbd7 {[%emt 0:05:06]} 18. Rad1 {[%emt 0:00:41]} Ne8 {[%emt 0:00:59]} 19. Nh2 {[%emt 0:09:48]} Qb6 {[%emt 0:03:59]} 20. Qxb6 {[%emt 0:01:15]} 1/2-1/2

[Event "FIDE WSTC Open 50 2025"]
[Site "Prague"]
[Date "2025.02.20"]
[Round "4.1"]
[White "David, Alberto"]
[Black "Adams, Michael"]
[Result "1/2-1/2"]
[Annotator "RC"]
[ECO "E20"]
[WhiteElo "2467"]
[BlackElo "2664"]
[PlyCount "52"]
[EventDate "2025.02.17"]
[EventType "team-tourn"]
[EventCountry "CZE"]
[SourceTitle "playchess.com"]
[Source "ChessBase"]
[SourceQuality "1"]
[TimeControl "40/5400+30:1800+30"]

1. d4 {[%emt 0:00:05]} Nf6 {[%emt 0:00:07]} 2. c4 {[%emt 0:00:05]} e6 {[%emt 0:00:05]} 3. Nc3 {[%emt 0:00:09]} Bb4 {[%emt 0:00:08]} 4. f3 {[%emt 0:00:21]} d5 {[%emt 0:00:35]} 5. a3 {[%emt 0:00:26]} Bxc3+ {[%emt 0:00:06]} 6. bxc3 {[%emt 0:00:05]} c6 {[%emt 0:00:06]} 7. e3 {[%emt 0:12:55]} O-O {[%emt 0:00:26]} 8. Bd3 {[%emt 0:04:04]} dxc4 {[%emt 0:03:34]} 9. Bxc4 {[%emt 0:00:14]} c5 {[%emt 0:00:11]} 10. Ne2 {[%emt 0:01:37]} Qc7 {[%emt 0:00:21]} 11. Bd3 {[%emt 0:04:31]} Nc6 {[%emt 0:00:45]} 12. O-O {[%emt 0:03:58]} e5 {[%emt 0:17:05]} 13. Bb2 {[%emt 0:19:35]} Rd8 {[%emt 0:05:57]} 14. Qe1 {[%emt 0:04:20]} Be6 {[%emt 0:05:03]} 15. Kh1 {[%emt 0:22:43]} Qb6 {[%emt 0:09:53]} 16. Bc1 {[%emt 0:11:34]} cxd4 {[%emt 0:09:36]} 17. Rb1 {[%emt 0:03:53]} Qa5 {[%emt 0:05:29]} 18. Rb5 {[%emt 0:04:54]} Qa4 {[%emt 0:04:33]} 19. cxd4 {[%emt 0:00:18]} exd4 {[%emt 0:02:48]} 20. Rxb7 {[%emt 0:01:23]} dxe3 {[%emt 0:11:30]} 21. Bb5 {[%emt 0:01:07]} Qc2 {[%emt 0:00:07]} 22. Bxe3 {[%emt 0:01:00]} Bc4 {[%emt 0:00:57]} 23. Bxc6 {[%emt 0:01:45]} Bxe2 {[%emt 0:01:18]} 24. Qc1 {[%emt 0:00:16]} Qd3 {[%emt 0:04:40]} 25. Re1 {[%emt 0:00:02]} Rac8 {[%emt 0:00:17]} 26. Rb2 {[%emt 0:00:19]} Qa6 {[%emt 0:05:37]} 1/2-1/2

[Event "FIDE WSTC Open 50 2025"]
[Site "Prague"]
[Date "2025.02.20"]
[Round "4.2"]
[White "Conquest, Stuart C"]
[Black "Godena, Michele"]
[Result "1/2-1/2"]
[Annotator "RC"]
[ECO "A06"]
[WhiteElo "2513"]
[BlackElo "2439"]
[PlyCount "48"]
[EventDate "2025.02.17"]
[EventType "team-tourn"]
[EventCountry "CZE"]
[SourceTitle "playchess.com"]
[Source "ChessBase"]
[SourceQuality "1"]
[TimeControl "40/5400+30:1800+30"]

1. Nf3 {[%emt 0:00:48]} d5 {[%emt 0:00:14]} 2. b3 {[%emt 0:01:12]} Bg4 {[%emt 0:11:27]} 3. Bb2 {[%emt 0:00:19]} Nd7 {[%emt 0:00:46]} 4. e3 {[%emt 0:00:59]} c6 {[%emt 0:12:54]} 5. h3 {[%emt 0:03:13]} Bxf3 {[%emt 0:23:33]} 6. Qxf3 {[%emt 0:00:16]} e6 {[%emt 0:00:36]} 7. Be2 {[%emt 0:15:59]} Ngf6 {[%emt 0:02:41]} 8. g4 {[%emt 0:04:26]} Bd6 {[%emt 0:02:06]} 9. Nc3 {[%emt 0:14:10]} Be5 {[%emt 0:20:35]} 10. d4 {[%emt 0:21:43]} Bd6 {[%emt 0:00:06]} 11. g5 {[%emt 0:02:05]} Ne4 {[%emt 0:01:51]} 12. Nxe4 {[%emt 0:06:52]} dxe4 {[%emt 0:00:06]} 13. Qxe4 {[%emt 0:00:33]} Qa5+ {[%emt 0:00:06]} 14. Kf1 {[%emt 0:00:58]} Qxg5 {[%emt 0:00:08]} 15. Rg1 {[%emt 0:07:01]} Qh6 {[%emt 0:03:11]} 16. Qg2 {[%emt 0:02:20]} O-O {[%emt 0:01:25]} 17. f4 {[%emt 0:01:41]} Be7 {[%emt 0:05:54]} 18. Rd1 {[%emt 0:04:16]} Bf6 {[%emt 0:00:27]} 19. Qf3 {[%emt 0:03:24]} c5 {[%emt 0:04:36]} 20. Bc1 {[%emt 0:01:11]} Rfd8 {[%emt 0:03:43]} 21. c3 {[%emt 0:01:38]} g6 {[%emt 0:02:48]} 22. e4 {[%emt 0:00:45]} cxd4 {[%emt 0:01:00]} 23. cxd4 {[%emt 0:00:18]} Rac8 {[%emt 0:00:08]} 24. Be3 {[%emt 0:04:19]} Rc3 {[%emt 0:00:26]} 1/2-1/2

[Event "FIDE WSTC Open 50 2025"]
[Site "Prague"]
[Date "2025.02.20"]
[Round "4.3"]
[White "Bellini, Fabio"]
[Black "Hebden, Mark L"]
[Result "1/2-1/2"]
[Annotator "RC"]
[ECO "C55"]
[WhiteElo "2408"]
[BlackElo "2363"]
[PlyCount "90"]
[EventDate "2025.02.17"]
[EventType "team-tourn"]
[EventCountry "CZE"]
[SourceTitle "playchess.com"]
[Source "ChessBase"]
[SourceQuality "1"]
[TimeControl "40/5400+30:1800+30"]

1. e4 {[%emt 0:00:04]} e5 {[%emt 0:00:27]} 2. Nf3 {[%emt 0:00:10]} Nc6 {[%emt 0:00:07]} 3. Bc4 {[%emt 0:00:16]} Nf6 {[%emt 0:00:20]} 4. d3 {[%emt 0:00:11]} Be7 {[%emt 0:00:41]} 5. O-O {[%emt 0:00:52]} O-O {[%emt 0:01:06]} 6. Nc3 {[%emt 0:00:35]} d6 {[%emt 0:00:21]} 7. a4 {[%emt 0:00:39]} Na5 {[%emt 0:02:33]} 8. Ba2 {[%emt 0:00:22]} c5 {[%emt 0:00:15]} 9. Bg5 {[%emt 0:03:12]} Nc6 {[%emt 0:00:47]} 10. Bxf6 {[%emt 0:01:30]} Bxf6 {[%emt 0:00:06]} 11. Nd5 {[%emt 0:00:26]} g6 {[%emt 0:00:18]} 12. c3 {[%emt 0:02:42]} Bg7 {[%emt 0:00:20]} 13. b4 {[%emt 0:03:39]} Kh8 {[%emt 0:01:25]} 14. b5 {[%emt 0:21:49]} Ne7 {[%emt 0:02:05]} 15. d4 {[%emt 0:01:22]} exd4 {[%emt 0:11:02]} 16. cxd4 {[%emt 0:00:51]} Bg4 {[%emt 0:05:08]} 17. dxc5 {[%emt 0:02:00]} dxc5 {[%emt 0:07:38]} 18. Rc1 {[%emt 0:10:21]} Rc8 {[%emt 0:03:13]} 19. Re1 {[%emt 0:05:25]} b6 {[%emt 0:06:26]} 20. Rc2 {[%emt 0:04:32]} Nxd5 {[%emt 0:02:03]} 21. Bxd5 {[%emt 0:00:33]} Qe7 {[%emt 0:01:50]} 22. Qd3 {[%emt 0:05:01]} Rfd8 {[%emt 0:01:12]} 23. Ree2 {[%emt 0:04:41]} Qf6 {[%emt 0:04:24]} 24. h3 {[%emt 0:03:52]} Bxf3 {[%emt 0:17:32]} 25. Qxf3 {[%emt 0:01:07]} Qxf3 {[%emt 0:01:18]} 26. gxf3 {[%emt 0:00:05]} Rc7 {[%emt 0:00:26]} 27. Rc4 {[%emt 0:03:39]} Bd4 {[%emt 0:02:58]} 28. a5 {[%emt 0:03:06]} f5 {[%emt 0:01:42]} 29. axb6 {[%emt 0:01:36]} axb6 {[%emt 0:00:06]} 30. Ra2 {[%emt 0:01:18]} fxe4 {[%emt 0:00:25]} 31. fxe4 {[%emt 0:00:33]} Rf8 {[%emt 0:00:17]} 32. Kg2 {[%emt 0:02:21]} Re7 {[%emt 0:00:48]} 33. Rca4 {[%emt 0:01:29]} Rf6 {[%emt 0:01:46]} 34. f3 {[%emt 0:02:33]} h5 {[%emt 0:02:08]} 35. Ra7 {[%emt 0:03:17]} Rxa7 {[%emt 0:03:48]} 36. Rxa7 {[%emt 0:00:03]} g5 {[%emt 0:00:30]} 37. h4 {[%emt 0:03:54]} gxh4 {[%emt 0:00:31]} 38. Kh3 {[%emt 0:00:12]} c4 {[%emt 0:02:11]} 39. Bxc4 {[%emt 0:04:08]} Rxf3+ {[%emt 0:00:44]} 40. Kxh4 {[%emt 0:01:22]} Rf4+ {[%emt 0:00:15]} 41. Kg5 {[%emt 0:34:36]} Rxe4 {[%emt 0:32:01]} 42. Kg6 {[%emt 0:00:00]} Rg4+ {[%emt 0:00:00]} 43. Kxh5 {[%emt 0:00:00]} Rg3 {[%emt 0:00:00]} 44. Rd7 {[%emt 0:00:00]} Be3 {[%emt 0:00:00]} 45. Rd8+ {[%emt 0:00:00]} Kh7 {[%emt 0:00:00]} 1/2-1/2